[Event "Titled Tuesday Blitz July 6 2021"]
[White "Nakamura, Hikaru"]
[Black "Jobava, Baadur"]
[WhiteFideId "2016192"]
[BlackFideId "13601520"]
[WhiteElo "2900"]
[BlackElo "2748"]
[Result "1-0"]
[Round "09"]
[TimeControl "180+1"]
[Date "2021.07.06"]
[WhiteClock "0:00:16"]
[BlackClock "0:00:01"]

1. Nf3 {[%clk 0:03:00]}  Nf6 {[%clk 0:03:00]} 2. e3 {[%clk 0:02:58]}  b6 {[%clk 0:02:59]} 3. b3 {[%clk 0:02:58]}  Bb7 {[%clk 0:03:00]} 4. Bb2 {[%clk 0:02:58]}  e6 {[%clk 0:03:00]} 5. d4 {[%clk 0:02:58]}  Be7 {[%clk 0:03:01]} 6. Bd3 {[%clk 0:02:57]}  c5 {[%clk 0:02:59]} 7. dxc5 {[%clk 0:02:57]}  bxc5 {[%clk 0:02:59]} 8. c4 {[%clk 0:02:56]}  d6 {[%clk 0:02:57]} 9. O-O {[%clk 0:02:56]}  Nbd7 {[%clk 0:02:57]} 10. Qe2 {[%clk 0:02:54]}  O-O {[%clk 0:02:56]} 11. Rd1 {[%clk 0:02:53]}  Qc7 {[%clk 0:02:43]} 12. Nc3 {[%clk 0:02:48]}  Rfe8 {[%clk 0:02:40]} 13. Rd2 {[%clk 0:02:41]}  Rad8 {[%clk 0:02:38]} 14. Rad1 {[%clk 0:02:39]}  Qb8 {[%clk 0:02:34]} 15. h3 {[%clk 0:02:37]}  Nf8 {[%clk 0:02:31]} 16. Ng5 {[%clk 0:02:32]}  Ng6 {[%clk 0:02:22]} 17. Nge4 {[%clk 0:02:20]}  Qa8 {[%clk 0:02:16]} 18. f3 {[%clk 0:02:12]}  Nxe4 {[%clk 0:01:51]} 19. Bxe4 {[%clk 0:02:09]}  Bxe4 {[%clk 0:01:49]} 20. Nxe4 {[%clk 0:02:08]}  d5 {[%clk 0:01:50]} 21. Nf2 {[%clk 0:02:02]}  h6 {[%clk 0:01:42]} 22. Ng4 {[%clk 0:01:51]}  Bf8 {[%clk 0:01:34]} 23. Ne5 {[%clk 0:01:46]}  Nxe5 {[%clk 0:01:32]} 24. Bxe5 {[%clk 0:01:47]}  a5 {[%clk 0:01:26]} 25. a4 {[%clk 0:01:38]}  Rd7 {[%clk 0:01:20]} 26. Rd3 {[%clk 0:01:34]}  Rb7 {[%clk 0:01:15]} 27. Qc2 {[%clk 0:01:28]}  Rd7 {[%clk 0:01:00]} 28. Bc3 {[%clk 0:01:24]}  Red8 {[%clk 0:00:56]} 29. Be1 {[%clk 0:01:23]}  d4 {[%clk 0:00:52]} 30. Qd2 {[%clk 0:01:10]}  Qb7 {[%clk 0:00:45]} 31. Qxa5 {[%clk 0:00:59]}  dxe3 {[%clk 0:00:44]} 32. Qc3 {[%clk 0:00:58]}  Rd4 {[%clk 0:00:37]} 33. Bg3 {[%clk 0:00:24]}  e2 {[%clk 0:00:33]} 34. R1d2 {[%clk 0:00:23]}  Bd6 {[%clk 0:00:29]} 35. Be1 {[%clk 0:00:17]}  Be5 {[%clk 0:00:23]} 36. Qc2 {[%clk 0:00:18]}  Bf4 {[%clk 0:00:18]} 37. Rxd4 {[%clk 0:00:16]}  cxd4 {[%clk 0:00:19]} 38. Rd3 {[%clk 0:00:17]}  Be3+ {[%clk 0:00:17]} 39. Kh1 {[%clk 0:00:17]}  e5 {[%clk 0:00:16]} 40. Qxe2 {[%clk 0:00:15]}  f5 {[%clk 0:00:16]} 41. b4 {[%clk 0:00:12]}  e4 {[%clk 0:00:16]} 42. fxe4 {[%clk 0:00:13]}  fxe4 {[%clk 0:00:16]} 43. Rd1 {[%clk 0:00:14]}  Bg5 {[%clk 0:00:13]} 44. h4 {[%clk 0:00:14]}  d3 {[%clk 0:00:13]} 45. Qg4 {[%clk 0:00:14]}  Bf6 {[%clk 0:00:12]} 46. c5 {[%clk 0:00:15]}  Kh8 {[%clk 0:00:11]} 47. Qe6 {[%clk 0:00:14]}  Qd5 {[%clk 0:00:10]} 48. Qxd5 {[%clk 0:00:15]}  Rxd5 {[%clk 0:00:11]} 49. c6 {[%clk 0:00:15]}  Be5 {[%clk 0:00:10]} 50. Bf2 {[%clk 0:00:15]}  Bf4 {[%clk 0:00:08]} 51. a5 {[%clk 0:00:14]}  Rb5 {[%clk 0:00:05]} 52. a6 {[%clk 0:00:15]}  Rxb4 {[%clk 0:00:05]} 53. g3 {[%clk 0:00:15]}  Bc7 {[%clk 0:00:04]} 54. a7 {[%clk 0:00:16]}  Ra4 {[%clk 0:00:04]} 55. Re1 {[%clk 0:00:16]}  d2 {[%clk 0:00:03]} 56. Rd1 {[%clk 0:00:17]}  Ra6 {[%clk 0:00:01]} 57. Rxd2 {[%clk 0:00:17]}  Kh7 {[%clk 0:00:01]} 58. Rd7 {[%clk 0:00:16]} 1-0


[Site "https://www.chess.com"]

[Event "Titled Tuesday Blitz July 6 2021"]
[White "Navalgund, Niranjan"]
[Black "Dushyant Sharma"]
[WhiteFideId "5030854"]
[BlackFideId "25065130"]
[WhiteElo "2290"]
[BlackElo "2019"]
[Result "0-1"]
[Round "09"]
[TimeControl "180+1"]
[Date "2021.07.06"]
[WhiteClock "0:00:19"]
[BlackClock "0:00:07"]

1. d4 {[%clk 0:03:00]}  d5 {[%clk 0:02:59]} 2. Nf3 {[%clk 0:03:00]}  e6 {[%clk 0:02:58]} 3. c4 {[%clk 0:03:01]}  Be7 {[%clk 0:02:57]} 4. g3 {[%clk 0:03:00]}  Nf6 {[%clk 0:02:57]} 5. Bg2 {[%clk 0:03:00]}  O-O {[%clk 0:02:58]} 6. O-O {[%clk 0:03:01]}  dxc4 {[%clk 0:02:57]} 7. Qc2 {[%clk 0:03:02]}  c5 {[%clk 0:02:57]} 8. dxc5 {[%clk 0:03:02]}  Nc6 {[%clk 0:02:57]} 9. Qxc4 {[%clk 0:03:02]}  e5 {[%clk 0:02:58]} 10. Bg5 {[%clk 0:03:00]}  Be6 {[%clk 0:02:58]} 11. Qc1 {[%clk 0:03:00]}  h6 {[%clk 0:02:21]} 12. Rd1 {[%clk 0:02:55]}  Qa5 {[%clk 0:02:08]} 13. Bxf6 {[%clk 0:02:52]}  Bxf6 {[%clk 0:02:09]} 14. a3 {[%clk 0:02:46]}  e4 {[%clk 0:01:48]} 15. Ne1 {[%clk 0:02:45]}  Nd4 {[%clk 0:01:30]} 16. Rxd4 {[%clk 0:02:30]}  Bxd4 {[%clk 0:01:29]} 17. b4 {[%clk 0:02:30]}  Qd8 {[%clk 0:01:20]} 18. Nc3 {[%clk 0:02:27]}  a5 {[%clk 0:01:03]} 19. Rb1 {[%clk 0:02:23]}  axb4 {[%clk 0:01:01]} 20. axb4 {[%clk 0:02:24]}  f5 {[%clk 0:00:58]} 21. e3 {[%clk 0:02:14]}  Be5 {[%clk 0:00:56]} 22. Qc2 {[%clk 0:02:02]}  Qf6 {[%clk 0:00:55]} 23. Nb5 {[%clk 0:01:59]}  Ra2 {[%clk 0:00:54]} 24. Qc1 {[%clk 0:01:58]}  Rd8 {[%clk 0:00:51]} 25. Nc2 {[%clk 0:01:52]}  Bb2 {[%clk 0:00:37]} 26. Qe1 {[%clk 0:01:48]}  Bc3 {[%clk 0:00:34]} 27. Nxc3 {[%clk 0:01:31]}  Rxc2 {[%clk 0:00:33]} 28. Nb5 {[%clk 0:01:30]}  Rdd2 {[%clk 0:00:30]} 29. Nd4 {[%clk 0:01:30]}  Ra2 {[%clk 0:00:23]} 30. Bf1 {[%clk 0:01:24]}  Qg6 {[%clk 0:00:18]} 31. Rc1 {[%clk 0:01:17]}  Bd5 {[%clk 0:00:18]} 32. b5 {[%clk 0:01:12]}  f4 {[%clk 0:00:18]} 33. c6 {[%clk 0:01:02]}  bxc6 {[%clk 0:00:18]} 34. bxc6 {[%clk 0:01:02]}  Rxf2 {[%clk 0:00:19]} 35. c7 {[%clk 0:00:53]}  Bb7 {[%clk 0:00:15]} 36. c8=Q+ {[%clk 0:00:39]}  Bxc8 {[%clk 0:00:15]} 37. Rxc8+ {[%clk 0:00:40]}  Kh7 {[%clk 0:00:16]} 38. Qxf2 {[%clk 0:00:38]}  Rxf2 {[%clk 0:00:16]} 39. Kxf2 {[%clk 0:00:38]}  fxe3+ {[%clk 0:00:15]} 40. Kxe3 {[%clk 0:00:35]}  Qg5+ {[%clk 0:00:14]} 41. Kf2 {[%clk 0:00:35]}  Qf6+ {[%clk 0:00:10]} 42. Kg2 {[%clk 0:00:31]}  Qxd4 {[%clk 0:00:09]} 43. Rc2 {[%clk 0:00:31]}  e3 {[%clk 0:00:08]} 44. Re2 {[%clk 0:00:31]}  Qe4+ {[%clk 0:00:07]} 45. Kg1 {[%clk 0:00:31]}  Qf3 {[%clk 0:00:08]} 46. Rc2 {[%clk 0:00:29]}  h5 {[%clk 0:00:08]} 47. Re2 {[%clk 0:00:29]}  g5 {[%clk 0:00:07]} 48. Rc2 {[%clk 0:00:29]}  Kh6 {[%clk 0:00:08]} 49. Re2 {[%clk 0:00:28]}  h4 {[%clk 0:00:08]} 50. gxh4 {[%clk 0:00:28]}  gxh4 {[%clk 0:00:09]} 51. Rc2 {[%clk 0:00:28]}  h3 {[%clk 0:00:07]} 52. Re2 {[%clk 0:00:23]}  Kg6 {[%clk 0:00:07]} 53. Rc2 {[%clk 0:00:22]}  Qg4+ {[%clk 0:00:07]} 54. Bg2 {[%clk 0:00:20]}  Qd1+ {[%clk 0:00:07]} 55. Bf1 {[%clk 0:00:19]}  Qxc2 {[%clk 0:00:07]} 56. Bd3+ {[%clk 0:00:19]}  Qxd3 {[%clk 0:00:07]} 0-1


[Site "https://www.chess.com"]

[Event "Titled Tuesday Blitz July 6 2021"]
[White "Nguyen Hong Nhung"]
[Black "Rorrer, Grayson"]
[WhiteFideId "12412201"]
[BlackFideId "30944996"]
[WhiteElo "1661"]
[BlackElo "2122"]
[Result "1/2-1/2"]
[Round "09"]
[TimeControl "180+1"]
[Date "2021.07.06"]
[WhiteClock "0:00:20"]
[BlackClock "0:00:01"]

1. e4 {[%clk 0:03:00]}  c5 {[%clk 0:02:59]} 2. Nc3 {[%clk 0:03:00]}  a6 {[%clk 0:02:59]} 3. a4 {[%clk 0:02:59]}  Nc6 {[%clk 0:02:57]} 4. f4 {[%clk 0:03:00]}  e6 {[%clk 0:02:56]} 5. Nf3 {[%clk 0:03:00]}  d5 {[%clk 0:02:56]} 6. d3 {[%clk 0:03:01]}  Nf6 {[%clk 0:02:55]} 7. e5 {[%clk 0:02:59]}  Nd7 {[%clk 0:02:54]} 8. g3 {[%clk 0:02:59]}  Be7 {[%clk 0:02:55]} 9. Bg2 {[%clk 0:02:59]}  O-O {[%clk 0:02:56]} 10. O-O {[%clk 0:03:00]}  f6 {[%clk 0:02:53]} 11. exf6 {[%clk 0:02:59]}  Nxf6 {[%clk 0:02:54]} 12. Bd2 {[%clk 0:02:58]}  Qc7 {[%clk 0:02:52]} 13. Qe2 {[%clk 0:02:44]}  Bd6 {[%clk 0:02:41]} 14. Rae1 {[%clk 0:02:30]}  Re8 {[%clk 0:02:41]} 15. Ne5 {[%clk 0:02:22]}  Nd4 {[%clk 0:02:40]} 16. Qd1 {[%clk 0:02:21]}  Bd7 {[%clk 0:02:35]} 17. b3 {[%clk 0:02:16]}  b5 {[%clk 0:02:33]} 18. axb5 {[%clk 0:02:01]}  axb5 {[%clk 0:02:34]} 19. Nxd7 {[%clk 0:01:36]}  Qxd7 {[%clk 0:02:33]} 20. Ne2 {[%clk 0:01:36]}  Nxe2+ {[%clk 0:02:00]} 21. Qxe2 {[%clk 0:01:37]}  e5 {[%clk 0:02:00]} 22. fxe5 {[%clk 0:01:35]}  Bxe5 {[%clk 0:02:00]} 23. Qf3 {[%clk 0:01:25]}  Bd4+ {[%clk 0:01:56]} 24. Kh1 {[%clk 0:01:25]}  Rxe1 {[%clk 0:01:56]} 25. Rxe1 {[%clk 0:01:26]}  Re8 {[%clk 0:01:50]} 26. c3 {[%clk 0:01:23]}  Rxe1+ {[%clk 0:01:49]} 27. Bxe1 {[%clk 0:01:24]}  Be5 {[%clk 0:01:48]} 28. Qe3 {[%clk 0:01:23]}  Bd6 {[%clk 0:01:36]} 29. d4 {[%clk 0:01:10]}  c4 {[%clk 0:01:33]} 30. bxc4 {[%clk 0:01:08]}  bxc4 {[%clk 0:01:32]} 31. Qg5 {[%clk 0:01:04]}  Qe6 {[%clk 0:01:15]} 32. Bd2 {[%clk 0:00:52]}  Qe2 {[%clk 0:01:07]} 33. Bxd5+ {[%clk 0:00:48]}  Kh8 {[%clk 0:01:07]} 34. Kg1 {[%clk 0:00:36]}  h6 {[%clk 0:01:02]} 35. Qf5 {[%clk 0:00:20]}  Qd1+ {[%clk 0:00:39]} 36. Kg2 {[%clk 0:00:20]}  Qxd2+ {[%clk 0:00:39]} 37. Kh3 {[%clk 0:00:20]}  Qg5 {[%clk 0:00:35]} 38. Qc8+ {[%clk 0:00:20]}  Kh7 {[%clk 0:00:36]} 39. Bf3 {[%clk 0:00:19]}  Qb5 {[%clk 0:00:24]} 40. Qe6 {[%clk 0:00:17]}  Qd7 {[%clk 0:00:23]} 41. Be4+ {[%clk 0:00:16]}  Kh8 {[%clk 0:00:21]} 42. Bf5 {[%clk 0:00:15]}  Qxe6 {[%clk 0:00:18]} 43. Bxe6 {[%clk 0:00:16]}  Ne4 {[%clk 0:00:19]} 44. Bxc4 {[%clk 0:00:16]}  Nxc3 {[%clk 0:00:20]} 45. Kg4 {[%clk 0:00:17]}  g6 {[%clk 0:00:19]} 46. h4 {[%clk 0:00:16]}  Kg7 {[%clk 0:00:19]} 47. Bd3 {[%clk 0:00:16]}  h5+ {[%clk 0:00:15]} 48. Kf3 {[%clk 0:00:15]}  Be7 {[%clk 0:00:16]} 49. Bc4 {[%clk 0:00:13]}  Bf6 {[%clk 0:00:15]} 50. d5 {[%clk 0:00:13]}  Na4 {[%clk 0:00:13]} 51. d6 {[%clk 0:00:12]}  Nb6 {[%clk 0:00:14]} 52. Be6 {[%clk 0:00:13]}  Bd8 {[%clk 0:00:13]} 53. g4 {[%clk 0:00:11]}  Bxh4 {[%clk 0:00:11]} 54. gxh5 {[%clk 0:00:11]}  gxh5 {[%clk 0:00:12]} 55. d7 {[%clk 0:00:12]}  Bd8 {[%clk 0:00:12]} 56. Kg2 {[%clk 0:00:11]}  h4 {[%clk 0:00:13]} 57. Kh3 {[%clk 0:00:11]}  Kf8 {[%clk 0:00:13]} 58. Bg4 {[%clk 0:00:12]}  Bf6 {[%clk 0:00:12]} 59. Bf5 {[%clk 0:00:12]}  Ke7 {[%clk 0:00:12]} 60. Bg4 {[%clk 0:00:12]}  Nxd7 {[%clk 0:00:13]} 61. Bxd7 {[%clk 0:00:13]}  Kxd7 {[%clk 0:00:14]} 62. Kg2 {[%clk 0:00:14]}  Ke6 {[%clk 0:00:01]} 63. Kh1 {[%clk 0:00:15]}  Kf5 {[%clk 0:00:01]} 64. Kg1 {[%clk 0:00:15]}  Kg4 {[%clk 0:00:02]} 65. Kh1 {[%clk 0:00:16]}  Kg3 {[%clk 0:00:02]} 66. Kg1 {[%clk 0:00:17]}  h3 {[%clk 0:00:02]} 67. Kh1 {[%clk 0:00:18]}  Be5 {[%clk 0:00:02]} 68. Kg1 {[%clk 0:00:19]}  Kf3 {[%clk 0:00:01]} 69. Kh1 {[%clk 0:00:20]} 1/2-1/2


[Site "https://www.chess.com"]

[Event "Titled Tuesday Blitz July 6 2021"]
[White "Obregon, Andres Carlos"]
[Black "Kobo, Ori"]
[WhiteFideId "111724"]
[BlackFideId "2812320"]
[WhiteElo "2572"]
[BlackElo "2431"]
[Result "1-0"]
[Round "09"]
[TimeControl "180+1"]
[Date "2021.07.06"]
[WhiteClock "0:00:16"]
[BlackClock "0:00:05"]

1. d4 {[%clk 0:02:33]}  Nf6 {[%clk 0:02:59]} 2. c4 {[%clk 0:02:25]}  c5 {[%clk 0:02:59]} 3. d5 {[%clk 0:02:24]}  b5 {[%clk 0:03:00]} 4. Nf3 {[%clk 0:02:25]}  Bb7 {[%clk 0:02:58]} 5. Qc2 {[%clk 0:02:22]}  bxc4 {[%clk 0:02:51]} 6. e4 {[%clk 0:02:22]}  e6 {[%clk 0:02:51]} 7. Bxc4 {[%clk 0:02:20]}  exd5 {[%clk 0:02:49]} 8. exd5 {[%clk 0:02:20]}  d6 {[%clk 0:02:48]} 9. O-O {[%clk 0:02:17]}  Be7 {[%clk 0:02:48]} 10. Nc3 {[%clk 0:02:15]}  O-O {[%clk 0:02:48]} 11. a4 {[%clk 0:02:06]}  a5 {[%clk 0:02:33]} 12. Bf4 {[%clk 0:02:03]}  Nbd7 {[%clk 0:02:33]} 13. Rad1 {[%clk 0:01:58]}  Nb6 {[%clk 0:02:31]} 14. b3 {[%clk 0:01:58]}  Nxc4 {[%clk 0:02:13]} 15. bxc4 {[%clk 0:01:58]}  Nd7 {[%clk 0:02:13]} 16. Nb5 {[%clk 0:01:46]}  Nb6 {[%clk 0:02:06]} 17. Rfe1 {[%clk 0:01:44]}  Nc8 {[%clk 0:01:57]} 18. Nd2 {[%clk 0:01:34]}  Ba6 {[%clk 0:01:50]} 19. Re2 {[%clk 0:01:15]}  Bxb5 {[%clk 0:01:09]} 20. cxb5 {[%clk 0:01:15]}  Bf6 {[%clk 0:01:09]} 21. Nc4 {[%clk 0:01:14]}  Bd4 {[%clk 0:01:05]} 22. Rde1 {[%clk 0:01:08]}  Ra7 {[%clk 0:00:56]} 23. h3 {[%clk 0:00:59]}  Rd7 {[%clk 0:00:46]} 24. Qd2 {[%clk 0:00:58]}  Nb6 {[%clk 0:00:40]} 25. Nxb6 {[%clk 0:00:38]}  Qxb6 {[%clk 0:00:41]} 26. Qd3 {[%clk 0:00:39]}  h6 {[%clk 0:00:25]} 27. g4 {[%clk 0:00:36]}  Qd8 {[%clk 0:00:24]} 28. Kg2 {[%clk 0:00:36]}  Qf6 {[%clk 0:00:23]} 29. Bd2 {[%clk 0:00:34]}  Qd8 {[%clk 0:00:16]} 30. f4 {[%clk 0:00:32]}  f5 {[%clk 0:00:12]} 31. Re6 {[%clk 0:00:31]}  fxg4 {[%clk 0:00:08]} 32. hxg4 {[%clk 0:00:31]}  Qh4 {[%clk 0:00:08]} 33. Qf3 {[%clk 0:00:30]}  Rdf7 {[%clk 0:00:04]} 34. R1e4 {[%clk 0:00:26]}  Be5 {[%clk 0:00:04]} 35. Qg3 {[%clk 0:00:21]}  Qxg3+ {[%clk 0:00:03]} 36. Kxg3 {[%clk 0:00:22]}  Bd4 {[%clk 0:00:03]} 37. Rxd6 {[%clk 0:00:21]}  Kh7 {[%clk 0:00:03]} 38. Rde6 {[%clk 0:00:17]}  Rd8 {[%clk 0:00:03]} 39. d6 {[%clk 0:00:16]}  Rfd7 {[%clk 0:00:04]} 40. Bxa5 {[%clk 0:00:16]}  Ra8 {[%clk 0:00:04]} 41. Bc7 {[%clk 0:00:16]}  Rxa4 {[%clk 0:00:05]} 42. b6 {[%clk 0:00:16]}  Rb4 {[%clk 0:00:05]} 43. Re7 {[%clk 0:00:16]} 1-0


[Site "https://www.chess.com"]

[Event "Titled Tuesday Blitz July 6 2021"]
[White "Pert, Richard G"]
[Black "Shtyka, Sergey"]
[WhiteFideId "404748"]
[BlackFideId "4138465"]
[WhiteElo "2441"]
[BlackElo "2064"]
[Result "1-0"]
[Round "09"]
[TimeControl "180+1"]
[Date "2021.07.06"]
[WhiteClock "0:00:33"]
[BlackClock "0:00:05"]

1. e4 {[%clk 0:03:00]}  c5 {[%clk 0:02:57]} 2. Nf3 {[%clk 0:02:57]}  Nc6 {[%clk 0:02:57]} 3. Bb5 {[%clk 0:02:57]}  g6 {[%clk 0:02:56]} 4. Bxc6 {[%clk 0:02:55]}  dxc6 {[%clk 0:02:56]} 5. d3 {[%clk 0:02:55]}  Bg7 {[%clk 0:02:56]} 6. Nc3 {[%clk 0:02:56]}  e5 {[%clk 0:02:53]} 7. h3 {[%clk 0:02:56]}  Ne7 {[%clk 0:02:53]} 8. Be3 {[%clk 0:02:55]}  b6 {[%clk 0:02:53]} 9. Qd2 {[%clk 0:02:55]}  O-O {[%clk 0:02:52]} 10. O-O {[%clk 0:02:53]}  f5 {[%clk 0:02:50]} 11. Bh6 {[%clk 0:02:42]}  fxe4 {[%clk 0:02:23]} 12. Nxe4 {[%clk 0:02:36]}  Rxf3 {[%clk 0:02:10]} 13. Bxg7 {[%clk 0:02:24]}  Kxg7 {[%clk 0:02:07]} 14. gxf3 {[%clk 0:02:22]}  Bxh3 {[%clk 0:02:06]} 15. Ng5 {[%clk 0:02:20]}  Qd7 {[%clk 0:01:53]} 16. Rfe1 {[%clk 0:02:11]}  h6 {[%clk 0:01:00]} 17. Nxh3 {[%clk 0:02:08]}  Qxh3 {[%clk 0:01:01]} 18. Rxe5 {[%clk 0:02:06]}  Nf5 {[%clk 0:01:01]} 19. Qf4 {[%clk 0:01:53]}  Rf8 {[%clk 0:00:55]} 20. Qg4 {[%clk 0:01:42]}  Qxg4+ {[%clk 0:00:30]} 21. fxg4 {[%clk 0:01:43]}  Nd4 {[%clk 0:00:30]} 22. Re7+ {[%clk 0:01:41]}  Kf6 {[%clk 0:00:30]} 23. Rxa7 {[%clk 0:01:38]}  Nxc2 {[%clk 0:00:30]} 24. Rf1 {[%clk 0:01:29]}  Nd4 {[%clk 0:00:30]} 25. f4 {[%clk 0:01:22]}  Re8 {[%clk 0:00:30]} 26. Rd7 {[%clk 0:01:08]}  Re2 {[%clk 0:00:27]} 27. Rf2 {[%clk 0:01:07]}  Re3 {[%clk 0:00:23]} 28. Rd6+ {[%clk 0:00:54]}  Kg7 {[%clk 0:00:19]} 29. g5 {[%clk 0:00:52]}  Rxd3 {[%clk 0:00:14]} 30. Rd7+ {[%clk 0:00:51]}  Kg8 {[%clk 0:00:12]} 31. Kg2 {[%clk 0:00:47]}  hxg5 {[%clk 0:00:11]} 32. fxg5 {[%clk 0:00:46]}  Re3 {[%clk 0:00:09]} 33. Rff7 {[%clk 0:00:39]}  Nf5 {[%clk 0:00:07]} 34. Rc7 {[%clk 0:00:34]}  Rg3+ {[%clk 0:00:05]} 35. Kf2 {[%clk 0:00:33]}  Rxg5 {[%clk 0:00:05]} 36. Rfd7 {[%clk 0:00:33]} 1-0


[Site "https://www.chess.com"]

[Event "Titled Tuesday Blitz July 6 2021"]
[White "Petriashvili, Nikoloz"]
[Black "Janaszak, Dawid"]
[WhiteFideId "13611216"]
[BlackFideId "1119206"]
[WhiteElo "2430"]
[BlackElo "2332"]
[Result "0-1"]
[Round "09"]
[TimeControl "180+1"]
[Date "2021.07.06"]
[WhiteClock "0:00:07"]
[BlackClock "0:00:05"]

1. e4 {[%clk 0:03:00]}  c5 {[%clk 0:02:59]} 2. Nf3 {[%clk 0:03:00]}  Nc6 {[%clk 0:02:59]} 3. d4 {[%clk 0:03:01]}  cxd4 {[%clk 0:03:00]} 4. Nxd4 {[%clk 0:03:02]}  g6 {[%clk 0:02:59]} 5. c4 {[%clk 0:03:01]}  b6 {[%clk 0:02:56]} 6. Nc3 {[%clk 0:03:01]}  Bb7 {[%clk 0:02:56]} 7. Be3 {[%clk 0:03:01]}  Bg7 {[%clk 0:02:57]} 8. Be2 {[%clk 0:03:01]}  Nf6 {[%clk 0:02:56]} 9. O-O {[%clk 0:03:01]}  O-O {[%clk 0:02:56]} 10. f3 {[%clk 0:02:56]}  d6 {[%clk 0:02:40]} 11. Rc1 {[%clk 0:02:48]}  Rc8 {[%clk 0:02:38]} 12. Qd2 {[%clk 0:02:48]}  Nd7 {[%clk 0:02:33]} 13. a3 {[%clk 0:02:36]}  Na5 {[%clk 0:02:26]} 14. Nd5 {[%clk 0:02:14]}  e6 {[%clk 0:02:09]} 15. Nb4 {[%clk 0:02:08]}  Bxd4 {[%clk 0:01:44]} 16. Bxd4 {[%clk 0:01:49]}  Nb3 {[%clk 0:01:43]} 17. Qe3 {[%clk 0:01:47]}  Nxc1 {[%clk 0:01:40]} 18. Rxc1 {[%clk 0:01:48]}  e5 {[%clk 0:01:33]} 19. Bc3 {[%clk 0:01:47]}  Nc5 {[%clk 0:01:27]} 20. Rd1 {[%clk 0:01:45]}  Qe7 {[%clk 0:01:18]} 21. Nd5 {[%clk 0:01:21]}  Bxd5 {[%clk 0:01:18]} 22. Rxd5 {[%clk 0:01:22]}  Na4 {[%clk 0:01:18]} 23. Bb4 {[%clk 0:01:20]}  Rfd8 {[%clk 0:01:11]} 24. Qd2 {[%clk 0:01:19]}  Nc5 {[%clk 0:01:08]} 25. Bc3 {[%clk 0:01:15]}  Na4 {[%clk 0:01:02]} 26. Bb4 {[%clk 0:01:12]}  Nc5 {[%clk 0:01:02]} 27. g3 {[%clk 0:01:11]}  f6 {[%clk 0:00:57]} 28. Kg2 {[%clk 0:01:11]}  Kg7 {[%clk 0:00:57]} 29. h4 {[%clk 0:01:10]}  h5 {[%clk 0:00:57]} 30. Bc3 {[%clk 0:01:10]}  Na4 {[%clk 0:00:53]} 31. Bb4 {[%clk 0:01:10]}  Nc5 {[%clk 0:00:45]} 32. Bd1 {[%clk 0:01:09]}  a5 {[%clk 0:00:43]} 33. Bc3 {[%clk 0:01:09]}  Ne6 {[%clk 0:00:39]} 34. Be2 {[%clk 0:01:02]}  Rc5 {[%clk 0:00:34]} 35. b4 {[%clk 0:00:26]}  axb4 {[%clk 0:00:34]} 36. axb4 {[%clk 0:00:27]}  Rxd5 {[%clk 0:00:34]} 37. Qxd5 {[%clk 0:00:28]}  Nd4 {[%clk 0:00:20]} 38. Bxd4 {[%clk 0:00:28]}  exd4 {[%clk 0:00:21]} 39. Qxd4 {[%clk 0:00:29]}  Qc7 {[%clk 0:00:17]} 40. Qd5 {[%clk 0:00:25]}  Re8 {[%clk 0:00:15]} 41. Kf2 {[%clk 0:00:22]}  Re5 {[%clk 0:00:14]} 42. Qa8 {[%clk 0:00:21]}  f5 {[%clk 0:00:10]} 43. Bd3 {[%clk 0:00:19]}  fxe4 {[%clk 0:00:09]} 44. fxe4 {[%clk 0:00:19]}  Qf7+ {[%clk 0:00:09]} 45. Ke2 {[%clk 0:00:19]}  Qe7 {[%clk 0:00:08]} 46. Kd2 {[%clk 0:00:16]}  b5 {[%clk 0:00:08]} 47. cxb5 {[%clk 0:00:14]}  d5 {[%clk 0:00:08]} 48. Qb8 {[%clk 0:00:07]}  Qxb4+ {[%clk 0:00:08]} 49. Ke2 {[%clk 0:00:05]}  Rxe4+ {[%clk 0:00:05]} 50. Bxe4 {[%clk 0:00:05]}  Qxe4+ {[%clk 0:00:06]} 51. Kd2 {[%clk 0:00:06]}  Qd4+ {[%clk 0:00:06]} 52. Kc2 {[%clk 0:00:07]}  Qc4+ {[%clk 0:00:06]} 53. Kb2 {[%clk 0:00:07]}  Qb4+ {[%clk 0:00:06]} 54. Kc2 {[%clk 0:00:08]}  Qc4+ {[%clk 0:00:06]} 55. Kd2 {[%clk 0:00:08]}  Qd4+ {[%clk 0:00:07]} 56. Ke2 {[%clk 0:00:09]}  Qe4+ {[%clk 0:00:07]} 57. Kf2 {[%clk 0:00:09]}  Qc2+ {[%clk 0:00:07]} 58. Ke3 {[%clk 0:00:08]}  Qe4+ {[%clk 0:00:06]} 59. Kf2 {[%clk 0:00:09]}  Qd4+ {[%clk 0:00:05]} 60. Kg2 {[%clk 0:00:08]}  Qe4+ {[%clk 0:00:06]} 61. Kh3 {[%clk 0:00:07]}  Qh1# {[%clk 0:00:05]} 0-1


[Site "https://www.chess.com"]